Organisation Name,Organisation Code,Directorate,Service Label,Service Code,Supplier Name,Supplier ID,Payment Date,Transaction No,Net Payments,Expenditure
North West Leicestershire District Council,31UH,Planning & Development,Environment Planning Policy,EPP,Hinckley & Bosworth Borough Council,A000770,06/07/2016,1330759,1372.92,Tree Officer
North West Leicestershire District Council,31UH,Leisure & Culture,Cultural Services TIC,CULTIC,Ashby Dramatic Society,A021686,06/07/2016,1330760,2169.00,Theatre Tickets
North West Leicestershire District Council,31UH,Planning & Development,Environment - Town Centre/CCTV,ECCTV,Southern Electric,A030266,06/07/2016,1330765,612.13,Electricity
North West Leicestershire District Council,31UH,Legal & Democratic,Electoral & Land Charges,LDELC,Crestline Printers Limited,A000434,06/07/2016,1330769,326.00,Printing Services
North West Leicestershire District Council,31UH,Legal & Democratic,Electoral & Land Charges,LDELC,SCI Print Limited,A028974,06/07/2016,1330770,2336.00,Printing Services
North West Leicestershire District Council,31UH,Legal & Democratic,Legal Services,LDLS,Browne Jacobson LLP,A042988,06/07/2016,1330773,2400.00,Agency Staff Costs
North West Leicestershire District Council,31UH,Finance,Financial Planning,FINPLA,Coalville Town Football Club,A034756,06/07/2016,1330784,2120.80,N.N.D.R. Contribution
North West Leicestershire District Council,31UH,Legal & Democratic,Electoral & Land Charges,LDELC,Royal Mail Group Plc,A001418,06/07/2016,1330793,1922.71,Postages
North West Leicestershire District Council,31UH,Housing,HRA Housing Management,HRAHM,British Gas Trading Limited,A001978,06/07/2016,1330794,647.85,Electricity
North West Leicestershire District Council,31UH,Finance,Exchequer Services,EXCH,Comensura Limited,A036958,06/07/2016,1330815,14249.82,Agency Staff Costs
North West Leicestershire District Council,31UH,Housing Repairs,HRA Housing Repairs & Maintenance,HRAHRM,Ward Recycling,A035471,06/07/2016,1330819,268.55,Tipping Charges
North West Leicestershire District Council,31UH,Housing Strategy,Community - Housing Strategy,HS,E M H Homes,A042783,06/07/2016,1330911,9355.00,Grants
North West Leicestershire District Council,31UH,Housing Strategy,Community - Housing Strategy,HS,Homestart (N.W. Leics),A000780,06/07/2016,1330912,4905.00,Grants
North West Leicestershire District Council,31UH,Leisure & Culture,Leisure & Cult Mangt,LCM,Castle Donington Parish Council,A000300,06/07/2016,1330914,500.00,Grants
North West Leicestershire District Council,31UH,Leisure & Culture,Leisure & Cult Mangt,LCM,Castle Donington & District Branch of the Royal British Legion,A043170,06/07/2016,1330922,500.00,Grants
North West Leicestershire District Council,31UH,Legal & Democratic,Legal Services,LDLS,Martin Lee & Co,A030613,06/07/2016,1330926,2000.00,External Legal Fees & Advice
North West Leicestershire District Council,31UH,Legal & Democratic,Member Services,LDMS,Burton Hospitals Charitable Fund,A041674,06/07/2016,1330927,5039.91,Chairmans Charity Donation
North West Leicestershire District Council,31UH,Housing Repairs,HRA Housing Repairs & Maintenance,HRAHRM,Sure Maintenance Ltd,A040460,06/07/2016,1331053,19151.67,Plumbing & Heating
North West Leicestershire District Council,31UH,Housing Repairs,HRA Housing Repairs & Maintenance,HRAHRM,Sure Maintenance Ltd,A040460,06/07/2016,1331054,2080.65,Plumbing & Heating
North West Leicestershire District Council,31UH,Leisure & Culture,Leisure & Cult Mangt,LCM,Mantle Community Arts Limited,A001039,06/07/2016,1331057,3500.00,Grants
North West Leicestershire District Council,31UH,Leisure & Culture,Leisure & Cult Mangt,LCM,Moira Furnace Museum Trust Ltd,A001136,06/07/2016,1331061,14309.00,Grants
North West Leicestershire District Council,31UH,Housing,HRA Housing Management,HRAHM,British Gas Trading Limited,A001978,06/07/2016,1331076,258.72,Electricity
North West Leicestershire District Council,31UH,Legal & Democratic,Legal Services,LDLS,Mr Timothy Leader,A039444,06/07/2016,1331078,3500.00,External Legal Fees & Advice
North West Leicestershire District Council,31UH,Corporate Director,Human Resources,HR,Arnold Clark Vehicle Management,A035549,06/07/2016,1331079,3166.11,Items To Be Leased
North West Leicestershire District Council,31UH,Housing,HRA Housing Management,HRAHM,Severn Trent Water Limited,A001468,06/07/2016,1331080,432.80,Water Charges (Metered)
North West Leicestershire District Council,31UH,Communications,Corporate - Customer Services,CS,Neopost Limited,A000079,06/07/2016,1331142,3000.00,Postages
North West Leicestershire District Council,31UH,Legal & Democratic,Legal Services,LDLS,HMCTS,A033947,06/07/2016,1331144,255.00,Insolvency Administration
North West Leicestershire District Council,31UH,Housing,HRA Neighbourhoods & Enforcement,HRANE,Charles Blyth & Co Ltd,A043179,06/07/2016,1331145,18101.16,Business Support Grant
North West Leicestershire District Council,31UH,Housing,HRA Housing Management,HRAHM,Tweedie Evans Consulting,A043181,06/07/2016,1331153,8605.00,Legal & Professional Services
North West Leicestershire District Council,31UH,Legal & Democratic,Electoral & Land Charges,LDELC,SCI Print Limited,A028974,13/07/2016,1331164,545.00,Printing Services
North West Leicestershire District Council,31UH,Housing Repairs,HRA Housing Repairs & Maintenance,HRAHRM,Sure Maintenance Ltd,A040460,13/07/2016,1331172,12954.00,Plumbing & Heating
North West Leicestershire District Council,31UH,Finance,Exchequer Services,EXCH,Comensura Limited,A036958,13/07/2016,1331191,12090.79,Agency Staff Costs
North West Leicestershire District Council,31UH,Legal & Democratic,Legal Services,LDLS,Sweet & Maxwell Ltd,A001611,13/07/2016,1331193,4571.00,Books & Publications
North West Leicestershire District Council,31UH,Housing,HRA Housing Management,HRAHM,Leicestershire County Council,A000950,13/07/2016,1331196,6176.12,Contract Cleaning
North West Leicestershire District Council,31UH,Housing,HRA Housing Management,HRAHM,Leicestershire County Council,A000950,13/07/2016,1331197,4920.06,Contract Cleaning
North West Leicestershire District Council,31UH,Information Technology,ICT Services,ICT,Virgin Media Business,A035373,13/07/2016,1331202,313.53,Computing
North West Leicestershire District Council,31UH,Finance,Exchequer Services,EXCH,Selima Limited,A010859,13/07/2016,1331213,2269.92,Payroll Services
North West Leicestershire District Council,31UH,Finance,Exchequer Services,EXCH,Kings Armoured Security Services Ltd,A004468,13/07/2016,1331215,1198.96,Collection - Cash
North West Leicestershire District Council,31UH,Street Management,Environment - Street Scene,ESS,The Royal Hotel,A001421,13/07/2016,1331227,6994.83,PCN levy
North West Leicestershire District Council,31UH,Information Technology,ICT Services,ICT,Freedom Communications (UK) Ltd,A032826,13/07/2016,1331228,-1517.95,Contract Payments (Other) Ext
North West Leicestershire District Council,31UH,Housing Repairs,HRA Housing Repairs & Maintenance,HRAHRM,Kier Services Maintenance East Ltd,A039980,13/07/2016,1331280,79563.08,Decent Homes
North West Leicestershire District Council,31UH,Leisure & Culture,Cultural Services TIC,CULTIC,Ashby Community Cinema,A042605,13/07/2016,1331282,531.00,Theatre Tickets
North West Leicestershire District Council,31UH,Housing Strategy,Community - Housing Strategy,HS,East Cambridgeshire District Council,A043188,13/07/2016,1331285,350.00,Training Expenses
North West Leicestershire District Council,31UH,Leisure & Culture,Leisure & Cult Mangt,LCM,Ibstock Community College,A000804,13/07/2016,1331379,3750.00,Swimming Pool Grant
North West Leicestershire District Council,31UH,Information Technology,ICT Services,ICT,Virgin Media Business,A008908,13/07/2016,1331396,5270.35,Telephone Charge / Rental
North West Leicestershire District Council,31UH,Property Services,Property Facilities Management,PROPFM,Southern Electric,A030266,13/07/2016,1331410,3484.96,Electricity
North West Leicestershire District Council,31UH,Property Services,Property Commercial Lettings,PROPCL,British Telecommunications Plc,A000233,13/07/2016,1331413,596.87,Telephones
North West Leicestershire District Council,31UH,Finance,Exchequer Services,EXCH,British Gas,A042590,13/07/2016,1331425,16198.55,Electricity
North West Leicestershire District Council,31UH,Finance,Financial Planning,FINPLA,Measham Parish Council,A001082,13/07/2016,1331426,1917.35,Measham Development Trust Contribution
North West Leicestershire District Council,31UH,Finance,Financial Planning,FINPLA,Blueprint Limited Partnership,A032013,13/07/2016,1331427,12558.67,Tanyard House- Rental Income
North West Leicestershire District Council,31UH,Leisure & Culture,Sport & Physical Activity,SPA,The Golf Centre Coalville,A041789,13/07/2016,1331432,250.00,Local Sports Alliance
North West Leicestershire District Council,31UH,Housing,HRA Housing Management,HRAHM,Severn Trent Water Limited,A001468,13/07/2016,1331434,1345.43,Water Charges (Metered)
North West Leicestershire District Council,31UH,Housing,HRA Housing Management,HRAHM,HMCTS,A033955,12/07/2016,1331415,1955.00,Legal & Professional Services
North West Leicestershire District Council,31UH,Finance,Exchequer Services,EXCH,H M Land Registry,A000713,12/07/2016,1331420,270.00,Land registry Searches
North West Leicestershire District Council,31UH,Finance,Exchequer Services,EXCH,Leicestershire County Council,A000950,12/07/2016,1331421,3582697.00,Precept
North West Leicestershire District Council,31UH,Finance,Exchequer Services,EXCH,"Leicester, Leicestershire & Rutland Fire Authority",A028339,12/07/2016,1331422,195995.00,Precept
North West Leicestershire District Council,31UH,Finance,Exchequer Services,EXCH,The Office of the Police and Crime Commissioner for Leicestershire,A007096,12/07/2016,1331423,583902.21,Precept
North West Leicestershire District Council,31UH,Finance,Exchequer Services,EXCH,Trainline,A042250,12/07/2016,1331424,342.92,Travel Expenditure
North West Leicestershire District Council,31UH,Legal & Democratic,Legal Services,LDLS,Ms Stephanie Smith,A043081,20/07/2016,1331478,300.00,External Legal Fees & Advice
North West Leicestershire District Council,31UH,Legal & Democratic,Legal Services,LDLS,Marrons Shakespeares,A041538,20/07/2016,1331479,2500.00,External Legal Fees & Advice
North West Leicestershire District Council,31UH,Housing Repairs,HRA Housing Repairs & Maintenance,HRAHRM,Sure Maintenance Ltd,A040460,20/07/2016,1331488,540.00,Plumbing & Heating
North West Leicestershire District Council,31UH,Housing Repairs,HRA Housing Repairs & Maintenance,HRAHRM,Sure Maintenance Ltd,A040460,20/07/2016,1331489,11948.16,Plumbing & Heating
North West Leicestershire District Council,31UH,Finance,Exchequer Services,EXCH,Comensura Limited,A036958,20/07/2016,1331495,18708.26,Agency Staff Costs
North West Leicestershire District Council,31UH,Leisure & Culture,Leisure & Cult Mangt,LCM,Ashby de la Zouch Museum,A028013,20/07/2016,1331511,1460.00,Grants
North West Leicestershire District Council,31UH,Housing,HRA Housing Management,HRAHM,Sure Maintenance Ltd,A040460,20/07/2016,1331522,750.00,Plumbing & Heating
North West Leicestershire District Council,31UH,Housing,HRA Housing Management,HRAHM,RammSanderson Ecology Ltd,A043142,20/07/2016,1331524,490.00,Legal & Professional Services
North West Leicestershire District Council,31UH,Housing,HRA Housing Management,HRAHM,Cresswell Property Surveys,A022373,20/07/2016,1331525,1300.00,Legal & Professional Services
North West Leicestershire District Council,31UH,Leisure Centres,Hermitage Leisure Centre,HLC,Southern Electric,A030266,20/07/2016,1331571,2513.43,Electricity
North West Leicestershire District Council,31UH,Leisure Centres,Hermitage Leisure Centre,HLC,Living Without Abuse,A043208,20/07/2016,1331592,250.00,Grants
North West Leicestershire District Council,31UH,Leisure Centres,Hermitage Leisure Centre,HLC,Severn Trent Water Limited,A001468,20/07/2016,1331594,2010.47,Water Charges (Metered)
North West Leicestershire District Council,31UH,Information Technology,ICT Services,ICT,Probrand Limited,A025151,20/07/2016,1331189,250.00,Administrative Equipment
North West Leicestershire District Council,31UH,Information Technology,ICT Services,ICT,Orange Plc,A018592,20/07/2016,1331722,1043.00,Mobile Telephones
North West Leicestershire District Council,31UH,Information Technology,ICT Services,ICT,Orange Plc,A018592,20/07/2016,1331723,-1094.00,Mobile Telephones
North West Leicestershire District Council,31UH,Communications,Corporate - Customer Services,CS,Neopost Limited,A000079,20/07/2016,1331733,1272.00,Postages
North West Leicestershire District Council,31UH,Planning & Development,Environment - Town Centre/CCTV,ECCTV,Southern Electric,A030266,20/07/2016,1331745,672.85,Electricity
North West Leicestershire District Council,31UH,Housing,HRA Housing Management,HRAHM,Redacted- Personal data,A043220,20/07/2016,1331748,1126.81,Grants
North West Leicestershire District Council,31UH,Finance,Exchequer Services,EXCH,Comensura Limited,A036958,20/07/2016,1331749,13635.67,Agency Staff Costs
North West Leicestershire District Council,31UH,Information Technology,ICT Services,ICT,GE Capital Equipment Finance Ltd,A017429,20/07/2016,1331615,457.30,Equipment Operating Leases
North West Leicestershire District Council,31UH,Information Technology,ICT Services,ICT,Orange Plc,A018592,20/07/2016,1331616,1143.77,Mobile Telephones
North West Leicestershire District Council,31UH,Information Technology,ICT Services,ICT,Orange Plc,A018592,20/07/2016,1331617,1602.48,Mobile Telephones
North West Leicestershire District Council,31UH,Information Technology,ICT Services,ICT,Canon UK Ltd,A040459,20/07/2016,1331621,2428.55,Equipment Operating Leases
North West Leicestershire District Council,31UH,Housing,HRA Housing Management,HRAHM,Experian Ltd,A009242,20/07/2016,1331630,500.00,Legal & Professional Services
North West Leicestershire District Council,31UH,Street Management,Environment Transport,ENOT,Post Office Limited,A008559,20/07/2016,1331631,2175.00,Licences - Road Fund Licence
North West Leicestershire District Council,31UH,Housing,HRA Housing Management,HRAHM,Taylor Bloxham Ltd,A037241,20/07/2016,1331636,998.00,Printing Services
North West Leicestershire District Council,31UH,Information Technology,ICT Services,ICT,Probrand Limited,A025151,20/07/2016,1331716,-250.00,Administrative Equipment
North West Leicestershire District Council,31UH,Property Services,Property Commercial Lettings,PROPCL,Corona Energy Retail 4 Ltd,A035709,19/07/2016,1331728,1630.36,Gas
North West Leicestershire District Council,31UH,Corporate Director,Human Resources,HR,The Disclosure & Barring Service,A027625,19/07/2016,1331729,1034.00,Criminal Records Bureau
North West Leicestershire District Council,31UH,Finance,Exchequer Services,EXCH,Department for Communities & Local Government,A028518,19/07/2016,1331730,2137912.00,Subsidy Receipts & Repayments
North West Leicestershire District Council,31UH,Finance,Exchequer Services,EXCH,Leicestershire County Council,A000950,19/07/2016,1331731,1975326.00,Precept
North West Leicestershire District Council,31UH,Leisure Centres,Hermitage Leisure Centre,HLC,Rosebery St Peters Community Centre,A043222,27/07/2016,1331762,648.00,Falls Prevention Classes- Room Hire
North West Leicestershire District Council,31UH,Planning & Development,Environment - Town Centre/CCTV,ECCTV,Southern Electric,A030266,27/07/2016,1331778,921.85,Electricity
North West Leicestershire District Council,31UH,Street Management,Environment - Street Scene,ESS,College Garth Boarding Kennels,A000385,27/07/2016,1331779,1788.00,Stray Dog Service
North West Leicestershire District Council,31UH,Leisure Centres,Hood Park Leisure Centre,HPLC,Southern Electric,A030266,27/07/2016,1331848,1923.24,Electricity
North West Leicestershire District Council,31UH,Leisure Centres,Hood Park Leisure Centre,HPLC,Severn Trent Water Limited,A001468,27/07/2016,1331849,1119.29,Water Charges (Metered)
North West Leicestershire District Council,31UH,Street Management,Environment Transport,ENOT,Post Office Limited,A008559,27/07/2016,1331853,650.00,Licences - Road Fund Licence
North West Leicestershire District Council,31UH,Leisure & Culture,Leisure & Cult Mangt,LCM,Measham Parish Council,A001082,27/07/2016,1331854,500.00,Green Footprints Exp
North West Leicestershire District Council,31UH,Communications,Corporate - Communications,CP,Neopost Limited,A000079,27/07/2016,1331857,319.85,Operational Equipment
North West Leicestershire District Council,31UH,Housing Repairs,HRA Housing Repairs & Maintenance,HRAHRM,RammSanderson Ecology Ltd,A043142,27/07/2016,1331865,720.00,Legal & Professional Services
North West Leicestershire District Council,31UH,Planning & Development,Environment Planning Policy,EPP,Julia Burkin,A043213,27/07/2016,1331951,2495.84,Consultants Fees
North West Leicestershire District Council,31UH,Finance,Financial Planning,FINPLA,Blackrock Cash Management,A039249,26/07/2016,1331993,2600000.00,Policy Lending
North West Leicestershire District Council,31UH,Finance,Financial Planning,FINPLA,Goldman Sachs Money Market Fund,A039248,26/07/2016,1331994,3800000.00,Policy Lending
North West Leicestershire District Council,31UH,Finance,Financial Planning,FINPLA,Royal Bank of Scotland Call A/c,A040451,26/07/2016,1331995,635000.00,Policy Lending
North West Leicestershire District Council,31UH,Finance,Financial Planning,FINPLA,Scottish Widows Investment Partnerhiip,A039247,26/07/2016,1332000,1500000.00,Policy Lending
North West Leicestershire District Council,31UH,Finance,Financial Planning,FINPLA,Hinckley & Rugby Building Society,A043237,26/07/2016,1332001,1000000.00,Policy Lending
North West Leicestershire District Council,31UH,Housing Repairs,HRA Housing Repairs & Maintenance,HRAHRM,Kier Services Maintenance East Ltd,A039980,27/07/2016,1332003,54967.27,Decent Homes
North West Leicestershire District Council,31UH,Housing Repairs,HRA Housing Repairs & Maintenance,HRAHRM,Western Power Distribution,A038499,27/07/2016,1332004,5283.42,Legal & Professional Services
North West Leicestershire District Council,31UH,Street Management,Environment Waste Management,ENOWM,UK Container Maintenance Ltd,A039044,27/07/2016,1332008,388.00,External Contractor Payments
North West Leicestershire District Council,31UH,Housing Repairs,HRA Housing Repairs & Maintenance,HRAHRM,Kier Services Maintenance East Ltd,A039980,06/07/2016,1330928,18296.39,Decent Homes
North West Leicestershire District Council,31UH,Housing Repairs,HRA Housing Repairs & Maintenance,HRAHRM,Kier Services Maintenance East Ltd,A039980,06/07/2016,1330929,18296.39,Decent Homes
North West Leicestershire District Council,31UH,Housing Repairs,HRA Housing Repairs & Maintenance,HRAHRM,Kier Services Maintenance East Ltd,A039980,06/07/2016,1330930,3069.84,Decent Homes
North West Leicestershire District Council,31UH,Housing Repairs,HRA Housing Repairs & Maintenance,HRAHRM,Kier Services Maintenance East Ltd,A039980,06/07/2016,1330931,676.26,Decent Homes
North West Leicestershire District Council,31UH,Housing Repairs,HRA Housing Repairs & Maintenance,HRAHRM,KONE,A041790,06/07/2016,1330932,1493.84,Lifts & Escalators
North West Leicestershire District Council,31UH,Housing Repairs,HRA Housing Repairs & Maintenance,HRAHRM,I G Doors Limited,A038041,06/07/2016,1330942,693.91,Plumbing & Heating
North West Leicestershire District Council,31UH,Housing Repairs,HRA Housing Repairs & Maintenance,HRAHRM,Sure Maintenance Ltd,A040460,06/07/2016,1330943,1610.00,Plumbing & Heating
North West Leicestershire District Council,31UH,Housing Repairs,HRA Housing Repairs & Maintenance,HRAHRM,Sure Maintenance Ltd,A040460,06/07/2016,1330944,6401.65,Plumbing & Heating
North West Leicestershire District Council,31UH,Housing Repairs,HRA Housing Repairs & Maintenance,HRAHRM,G Purchase Construction Ltd,A032830,06/07/2016,1330950,500.63,Housing Repairs
North West Leicestershire District Council,31UH,Housing Repairs,HRA Housing Repairs & Maintenance,HRAHRM,G Purchase Construction Ltd,A032830,06/07/2016,1330954,931.87,Housing Repairs
North West Leicestershire District Council,31UH,Housing Repairs,HRA Housing Repairs & Maintenance,HRAHRM,G Purchase Construction Ltd,A032830,06/07/2016,1330957,307.40,Housing Repairs
North West Leicestershire District Council,31UH,Housing Repairs,HRA Housing Repairs & Maintenance,HRAHRM,G Purchase Construction Ltd,A032830,06/07/2016,1330960,484.24,Housing Repairs
North West Leicestershire District Council,31UH,Housing Repairs,HRA Housing Repairs & Maintenance,HRAHRM,G Purchase Construction Ltd,A032830,06/07/2016,1330962,270.51,Housing Repairs
North West Leicestershire District Council,31UH,Housing Repairs,HRA Housing Repairs & Maintenance,HRAHRM,G Purchase Construction Ltd,A032830,06/07/2016,1330964,305.53,Housing Repairs
North West Leicestershire District Council,31UH,Housing Repairs,HRA Housing Repairs & Maintenance,HRAHRM,G Purchase Construction Ltd,A032830,06/07/2016,1330979,342.79,Housing Repairs
North West Leicestershire District Council,31UH,Housing Repairs,HRA Housing Repairs & Maintenance,HRAHRM,G Purchase Construction Ltd,A032830,06/07/2016,1330982,411.00,Housing Repairs
North West Leicestershire District Council,31UH,Housing Repairs,HRA Housing Repairs & Maintenance,HRAHRM,G Purchase Construction Ltd,A032830,06/07/2016,1330991,535.32,Housing Repairs
North West Leicestershire District Council,31UH,Housing Repairs,HRA Housing Repairs & Maintenance,HRAHRM,G Purchase Construction Ltd,A032830,06/07/2016,1330992,291.37,Housing Repairs
North West Leicestershire District Council,31UH,Housing Repairs,HRA Housing Repairs & Maintenance,HRAHRM,G Purchase Construction Ltd,A032830,06/07/2016,1331006,337.10,Housing Repairs
North West Leicestershire District Council,31UH,Housing Repairs,HRA Housing Repairs & Maintenance,HRAHRM,Kier Services Maintenance East Ltd,A039980,13/07/2016,1331234,4762.81,Decent Homes
North West Leicestershire District Council,31UH,Housing Repairs,HRA Housing Repairs & Maintenance,HRAHRM,Kier Services Maintenance East Ltd,A039980,13/07/2016,1331235,2037.18,Decent Homes
North West Leicestershire District Council,31UH,Housing Repairs,HRA Housing Repairs & Maintenance,HRAHRM,Kier Services Maintenance East Ltd,A039980,13/07/2016,1331236,439.68,Decent Homes
North West Leicestershire District Council,31UH,Housing Repairs,HRA Housing Repairs & Maintenance,HRAHRM,Kier Services Maintenance East Ltd,A039980,13/07/2016,1331237,4313.73,Decent Homes
North West Leicestershire District Council,31UH,Housing Repairs,HRA Housing Repairs & Maintenance,HRAHRM,Kier Services Maintenance East Ltd,A039980,13/07/2016,1331238,500.00,Decent Homes
North West Leicestershire District Council,31UH,Housing Repairs,HRA Housing Repairs & Maintenance,HRAHRM,Kier Services Maintenance East Ltd,A039980,13/07/2016,1331239,5776.69,Decent Homes
North West Leicestershire District Council,31UH,Housing Repairs,HRA Housing Repairs & Maintenance,HRAHRM,Kier Services Maintenance East Ltd,A039980,13/07/2016,1331240,4848.49,Decent Homes
North West Leicestershire District Council,31UH,Housing Repairs,HRA Housing Repairs & Maintenance,HRAHRM,Kier Services Maintenance East Ltd,A039980,13/07/2016,1331241,2597.41,Decent Homes
North West Leicestershire District Council,31UH,Housing Repairs,HRA Housing Repairs & Maintenance,HRAHRM,Kier Services Maintenance East Ltd,A039980,13/07/2016,1331242,1469.01,Decent Homes
North West Leicestershire District Council,31UH,Housing Repairs,HRA Housing Repairs & Maintenance,HRAHRM,Kier Services Maintenance East Ltd,A039980,13/07/2016,1331243,2164.06,Decent Homes
North West Leicestershire District Council,31UH,Housing Repairs,HRA Housing Repairs & Maintenance,HRAHRM,Kier Services Maintenance East Ltd,A039980,13/07/2016,1331244,1800.00,Decent Homes
North West Leicestershire District Council,31UH,Housing Repairs,HRA Housing Repairs & Maintenance,HRAHRM,Aspect Contracts Limited,A041868,13/07/2016,1331440,600.00,Contract Payments (Dws) Ext
North West Leicestershire District Council,31UH,Housing Repairs,HRA Housing Repairs & Maintenance,HRAHRM,Aspect Contracts Limited,A041868,13/07/2016,1331441,264.00,Contract Payments (Dws) Ext
North West Leicestershire District Council,31UH,Housing Repairs,HRA Housing Repairs & Maintenance,HRAHRM,Aspect Contracts Limited,A041868,13/07/2016,1331443,575.00,Contract Payments (Dws) Ext
North West Leicestershire District Council,31UH,Housing Repairs,HRA Housing Repairs & Maintenance,HRAHRM,Aspect Contracts Limited,A041868,13/07/2016,1331444,493.00,Contract Payments (Dws) Ext
North West Leicestershire District Council,31UH,Housing Repairs,HRA Housing Repairs & Maintenance,HRAHRM,Sure Maintenance Ltd,A040460,13/07/2016,1331447,5154.00,Plumbing & Heating
North West Leicestershire District Council,31UH,Housing Repairs,HRA Housing Repairs & Maintenance,HRAHRM,Leicestershire County Council,A000950,13/07/2016,1331448,4300.00,Contract Payments (Dws) Ext
North West Leicestershire District Council,31UH,Housing Repairs,HRA Housing Repairs & Maintenance,HRAHRM,Lovell Partnerships Ltd,A039973,13/07/2016,1331449,4298.87,Decent Homes
North West Leicestershire District Council,31UH,Housing Repairs,HRA Housing Repairs & Maintenance,HRAHRM,Kier Services Maintenance East Ltd,A039980,13/07/2016,1331450,10762.81,Decent Homes
North West Leicestershire District Council,31UH,Housing Repairs,HRA Housing Repairs & Maintenance,HRAHRM,Kier Services Maintenance East Ltd,A039980,13/07/2016,1331451,2549.49,Decent Homes
North West Leicestershire District Council,31UH,Housing Repairs,HRA Housing Repairs & Maintenance,HRAHRM,Kier Services Maintenance East Ltd,A039980,13/07/2016,1331452,1552.00,Decent Homes
North West Leicestershire District Council,31UH,Housing Repairs,HRA Housing Repairs & Maintenance,HRAHRM,Kier Services Maintenance East Ltd,A039980,13/07/2016,1331453,740.00,Decent Homes
North West Leicestershire District Council,31UH,Housing Repairs,HRA Housing Repairs & Maintenance,HRAHRM,Kier Services Maintenance East Ltd,A039980,13/07/2016,1331454,1900.00,Decent Homes
North West Leicestershire District Council,31UH,Housing Repairs,HRA Housing Repairs & Maintenance,HRAHRM,Kier Services Maintenance East Ltd,A039980,13/07/2016,1331455,12372.11,Decent Homes
North West Leicestershire District Council,31UH,Housing Repairs,HRA Housing Repairs & Maintenance,HRAHRM,Kier Services Maintenance East Ltd,A039980,13/07/2016,1331456,1437.09,Decent Homes
North West Leicestershire District Council,31UH,Housing Repairs,HRA Housing Repairs & Maintenance,HRAHRM,G Purchase Construction Ltd,A032830,20/07/2016,1331500,763.97,Housing Repairs
North West Leicestershire District Council,31UH,Housing Repairs,HRA Housing Repairs & Maintenance,HRAHRM,G Purchase Construction Ltd,A032830,20/07/2016,1331503,1369.93,Housing Repairs
North West Leicestershire District Council,31UH,Housing Repairs,HRA Housing Repairs & Maintenance,HRAHRM,Aspect Contracts Limited,A041868,20/07/2016,1331750,493.00,Contract Payments (Dws) Ext
North West Leicestershire District Council,31UH,Housing Repairs,HRA Housing Repairs & Maintenance,HRAHRM,Aspect Contracts Limited,A041868,27/07/2016,1332013,429.00,Contract Payments (Dws) Ext
North West Leicestershire District Council,31UH,Information Technology,ICT Services,ICT,Chloride Electronics Limited T/A Emerson Network Power,A035119,06/07/2016,1330719,831.14,Admin Equipment - Maintenance
North West Leicestershire District Council,31UH,Information Technology,ICT Services,ICT,Premier Paper Group,A042438,06/07/2016,1330772,576.78,Consumable Materials
North West Leicestershire District Council,31UH,Property Services,Property Facilities Management,PROPFM,LTT Vending Limited,A037981,06/07/2016,1330774,359.88,Catering Provisions
North West Leicestershire District Council,31UH,Street Management,Environment Waste Management,ENOWM,ESE World Limited,A001253,06/07/2016,1330779,475.00,General Materials
North West Leicestershire District Council,31UH,Leisure Centres,Hood Park Leisure Centre,HPLC,Keltic,A030776,06/07/2016,1330782,250.50,Protective Clothing
North West Leicestershire District Council,31UH,Street Management,Environment Waste Management,ENOWM,ESE World Limited,A001253,06/07/2016,1330792,2398.20,General Materials
North West Leicestershire District Council,31UH,Leisure Centres,Hood Park Leisure Centre,HPLC,Zoggs International Ltd,A001833,06/07/2016,1330800,502.00,Equipment For Resale
North West Leicestershire District Council,31UH,Leisure Centres,Hermitage Leisure Centre,HLC,Stowlin Ltd,A001591,06/07/2016,1330826,619.51,Water Treatment
North West Leicestershire District Council,31UH,Leisure Centres,Hermitage Leisure Centre,HLC,Wyndeham Gait Limited,A037245,06/07/2016,1330827,1515.00,Publicity & Promotion
North West Leicestershire District Council,31UH,Street Management,Environment Parks,ENOP,Admiral Cleaning Supplies Ltd,A040930,06/07/2016,1330868,266.43,Cleaning & Domestic Equipment
North West Leicestershire District Council,31UH,Legal & Democratic,Legal Services,LDLS,Venn Group Limited,A028530,06/07/2016,1330886,573.75,Agency Staff Costs
North West Leicestershire District Council,31UH,Legal & Democratic,Legal Services,LDLS,Venn Group Limited,A028530,06/07/2016,1330887,814.74,Agency Staff Costs
North West Leicestershire District Council,31UH,Planning & Development,Environment Planning Policy,EPP,Crestline Printers Limited,A000434,06/07/2016,1330530,2238.00,Local Development Framework
North West Leicestershire District Council,31UH,Planning & Development,Environment Community Planning,ECP,Broadland Guarding Services Ltd,A042635,06/07/2016,1330807,4058.43,Agency Staff Costs
North West Leicestershire District Council,31UH,Information Technology,ICT Services,ICT,Idox Software Ltd,A034157,06/07/2016,1330833,20450.00,Admin Equipment - Maintenance
North West Leicestershire District Council,31UH,Leisure Centres,Hermitage Leisure Centre,HLC,Phonographic Performances Ltd,A001300,06/07/2016,1330845,848.28,Licences
North West Leicestershire District Council,31UH,Street Management,Environment Waste Management,ENOWM,Straight Plc,A024906,06/07/2016,1330847,8627.00,General Materials
North West Leicestershire District Council,31UH,Planning & Development,Environment Planning Policy,EPP,DTZ Debenham Tie Leung Ltd,A034251,06/07/2016,1330851,7000.00,Local Development Framework
North West Leicestershire District Council,31UH,Street Management,Environment Transport,ENOT,Westbury Industrial Supplies Limited,A009933,06/07/2016,1330854,256.24,Protective Clothing
North West Leicestershire District Council,31UH,Street Management,Environment Transport,ENOT,Westbury Industrial Supplies Limited,A009933,06/07/2016,1330855,267.60,Protective Clothing
North West Leicestershire District Council,31UH,Street Management,Environment Transport,ENOT,Euro Municipal Ltd,A043137,06/07/2016,1330869,8000.00,Operational Equipment
North West Leicestershire District Council,31UH,Leisure Centres,Hood Park Bar and Catering,HPBC,Snackline Direct Ltd,A042489,06/07/2016,1330888,587.83,Catering Provisions
North West Leicestershire District Council,31UH,Finance,Housing Benefits,BENS,Capita Business Services Ltd,A002968,06/07/2016,1329522,4387.06,Local Authority Data Share Program
North West Leicestershire District Council,31UH,Information Technology,ICT Services,ICT,Geoff Smith Associates Ltd,A041931,06/07/2016,1330533,2421.29,Scanning
North West Leicestershire District Council,31UH,Property Services,Property Facilities Management,PROPFM,Gleam Team Services Limited,A000129,06/07/2016,1330903,350.00,Window Cleaning
North West Leicestershire District Council,31UH,Street Management,Environment Parks,ENOP,Beaver Treework,A035021,06/07/2016,1331040,1200.00,External Materials
North West Leicestershire District Council,31UH,Legal & Democratic,Legal Services,LDLS,Hays Human Resources,A024378,06/07/2016,1331082,980.00,Agency Staff Costs
North West Leicestershire District Council,31UH,Housing,HRA Performance & Business Support,HRAPBS,Abbey Cabs,A033029,06/07/2016,1331086,272.00,Public Transport
North West Leicestershire District Council,31UH,Street Management,Environment Parks,ENOP,Groundsman Tools & Supplies,A030744,06/07/2016,1330850,301.62,Operational Equipment
North West Leicestershire District Council,31UH,Street Management,Environment - Street Scene,ESS,John Merison BMC Ltd,A001092,06/07/2016,1330852,508.11,General Repairs
North West Leicestershire District Council,31UH,Property Services,Property Commercial Lettings,PROPCL,Coalville Cleaning Services,A003037,06/07/2016,1330871,262.20,Consumable Cleaning Materials/Hygiene
North West Leicestershire District Council,31UH,Planning & Development,Environment Community Planning,ECP,Venn Group Limited,A028530,06/07/2016,1330890,713.34,Agency Staff Costs
North West Leicestershire District Council,31UH,Street Management,Environment Transport,ENOT,DR Baling Wire Manufacturers Ltd,A032890,06/07/2016,1330905,1600.00,Operational Equipment
North West Leicestershire District Council,31UH,Street Management,Environment Transport,ENOT,J F Lloyd & Sons,A000991,06/07/2016,1330909,300.00,Hire Of Operational Equipment
North West Leicestershire District Council,31UH,Property Services,Property Facilities Management,PROPFM,Interserve Construction Limited,A041939,06/07/2016,1330940,1285.75,Asset Protection
North West Leicestershire District Council,31UH,Street Management,Environment Transport,ENOT,Midland Hydraulic Services Limited,A001106,06/07/2016,1331028,621.00,Repairs - Parts
North West Leicestershire District Council,31UH,Street Management,Environment Transport,ENOT,Regarde Security Ltd,A013049,06/07/2016,1331030,315.00,Security Services
North West Leicestershire District Council,31UH,Street Management,Environment Transport,ENOT,Ford & Slater Group Ltd,A000625,06/07/2016,1331051,777.90,Repairs - Parts
North West Leicestershire District Council,31UH,Leisure Centres,Hood Park Leisure Centre,HPLC,Century Electronic Security Limited,A020453,06/07/2016,1330513,1907.00,General Repairs
North West Leicestershire District Council,31UH,Information Technology,ICT Services,ICT,Probrand Limited,A025151,06/07/2016,1330867,260.00,Administrative Equipment
North West Leicestershire District Council,31UH,Leisure & Culture,Cultural Services Arts & Events,CULTEV,Hermitage FM,A041913,06/07/2016,1331026,450.00,Picnic/Proms in the Park Expenditure
North West Leicestershire District Council,31UH,Information Technology,ICT Services,ICT,Freedom Communications (UK) Ltd,A032826,06/07/2016,1331031,1600.00,Admin Equipment - Maintenance
North West Leicestershire District Council,31UH,Finance,Financial Planning,FINPLA,Hinckley & Bosworth Borough Council,A000770,06/07/2016,1331148,14250.00,Shared Revs & Bens Partnership costs
North West Leicestershire District Council,31UH,Finance,Financial Planning,FINPLA,Hinckley & Bosworth Borough Council,A000770,06/07/2016,1331149,103693.00,Shared Revs & Bens Partnership costs
North West Leicestershire District Council,31UH,Planning & Development,Building Control,EBC,Leicestershire County Council,A027423,13/07/2016,1330213,2380.00,Search Fees
North West Leicestershire District Council,31UH,Legal & Democratic,Audit Services,AUDIT,Leicestershire County Council,A000956,13/07/2016,1330907,350.00,Agency Staff Costs
North West Leicestershire District Council,31UH,Corporate Director,Human Resources,HR,Specsavers Corporate Eyecare,A028625,13/07/2016,1331158,525.00,Eye Care Vouchers
North West Leicestershire District Council,31UH,Corporate Director,Human Resources,HR,Forge Health Limited,A031645,13/07/2016,1331159,609.00,Medical Fees
North West Leicestershire District Council,31UH,Corporate Director,Human Resources,HR,Mr Lee Westbury Conflict Management Trainer,A043140,13/07/2016,1331160,2400.00,Training Expenses
North West Leicestershire District Council,31UH,Leisure & Culture,Cultural Services Arts & Events,CULTEV,Helter Skelter Arts Ltd,A043059,13/07/2016,1331162,560.00,Picnic/Proms in the Park Expenditure
North West Leicestershire District Council,31UH,Leisure & Culture,Cultural Services Arts & Events,CULTEV,Crocker Brothers Limited,A038388,13/07/2016,1331170,1406.89,Picnic/Proms in the Park Expenditure
North West Leicestershire District Council,31UH,Information Technology,ICT Services,ICT,Freedom Communications (UK) Ltd,A032826,13/07/2016,1331171,447.00,Admin Equipment - Maintenance
North West Leicestershire District Council,31UH,Property Services,Property Commercial Lettings,PROPCL,Urban Planters Leicestershire (limited),A003371,13/07/2016,1331179,552.50,Internal Decorations
North West Leicestershire District Council,31UH,Finance,Housing Benefits,BENS,CIPFA Business Limited,A036780,13/07/2016,1331182,843.75,Legal & Professional Services
North West Leicestershire District Council,31UH,Finance,Financial Planning,FINPLA,KPMG LLP,A035156,13/07/2016,1331183,16426.50,External Audit Fees
North West Leicestershire District Council,31UH,Street Management,Environment Waste Management,ENOWM,Straight Plc,A024906,13/07/2016,1331199,8520.00,General Materials
North West Leicestershire District Council,31UH,Street Management,Environment Transport,ENOT,Johnston Sweepers Ltd,A039355,13/07/2016,1329590,558.23,Repairs - Parts
North West Leicestershire District Council,31UH,Street Management,Environment Transport,ENOT,Johnston Sweepers Ltd,A039355,13/07/2016,1329597,485.25,Scheduled Servicing - Parts
North West Leicestershire District Council,31UH,Leisure Centres,Hood Park Leisure Centre,HPLC,Zoggs International Ltd,A001833,13/07/2016,1330532,963.90,Leisure Equipment
North West Leicestershire District Council,31UH,Street Management,Environment - Street Scene,ESS,Trevor Roberts Associates Ltd,A042339,13/07/2016,1331161,511.87,Training Expenses
North West Leicestershire District Council,31UH,Planning & Development,Environment - Development Control,EDC,Euro RSCG People T/A Havas People Ltd,A001395,13/07/2016,1331166,720.12,Advertising
North West Leicestershire District Council,31UH,Planning & Development,Environment - Development Control,EDC,Euro RSCG People T/A Havas People Ltd,A001395,13/07/2016,1331168,1489.69,Advertising
North West Leicestershire District Council,31UH,Legal & Democratic,Legal Services,LDLS,Hays Human Resources,A024378,13/07/2016,1331169,978.00,Agency Staff Costs
North West Leicestershire District Council,31UH,Legal & Democratic,Legal Services,LDLS,Venn Group Limited,A028530,13/07/2016,1331204,820.56,Agency Staff Costs
North West Leicestershire District Council,31UH,Legal & Democratic,Legal Services,LDLS,Venn Group Limited,A028530,13/07/2016,1331205,663.75,Agency Staff Costs
North West Leicestershire District Council,31UH,Leisure Centres,Hood Park Leisure Centre,HPLC,Stowlin Ltd,A001591,13/07/2016,1331263,301.50,Water Treatment
North West Leicestershire District Council,31UH,Environmental Health,Environmental Health & Licensing,EEHL,Killgerm Chemicals Ltd,A000890,13/07/2016,1331275,420.52,Baits & Poisons
North West Leicestershire District Council,31UH,Corporate Director,Human Resources,HR,Euro RSCG People T/A Havas People Ltd,A001395,13/07/2016,1331288,4577.05,Employee Advertising
North West Leicestershire District Council,31UH,Corporate Director,Human Resources,HR,Euro RSCG People T/A Havas People Ltd,A001395,13/07/2016,1331289,1051.00,Employee Advertising
North West Leicestershire District Council,31UH,Corporate Director,Human Resources,HR,Euro RSCG People T/A Havas People Ltd,A001395,13/07/2016,1331290,1326.30,Employee Advertising
North West Leicestershire District Council,31UH,Housing,HRA Performance & Business Support,HRAPBS,Taylor Bloxham Ltd,A037241,13/07/2016,1331292,813.00,Printing Services
North West Leicestershire District Council,31UH,Corporate Director,Human Resources,HR,PES Limited,A035521,13/07/2016,1331296,5977.00,Child Care Vouchers
North West Leicestershire District Council,31UH,Corporate Director,Human Resources,HR,Libby Carter Limited,A033121,13/07/2016,1331297,1797.60,Interim Support
North West Leicestershire District Council,31UH,Street Management,Environment Transport,ENOT,Terberg Matec UK Limited,A001647,13/07/2016,1331222,896.62,Repairs - Parts
North West Leicestershire District Council,31UH,Chief Exec,Chief Executive,CHEX,Nottingham City Council,A041558,13/07/2016,1331223,4995.00,Subscriptions
North West Leicestershire District Council,31UH,Leisure & Culture,Cultural Services Arts & Events,CULTEV,Regarde Security Ltd,A013049,13/07/2016,1331225,336.00,Security Services
North West Leicestershire District Council,31UH,Planning & Development,Environment Community Planning,ECP,Venn Group Limited,A028530,13/07/2016,1331229,915.84,Agency Staff Costs
North West Leicestershire District Council,31UH,Street Management,Environment Transport,ENOT,Aebi Schmidt Uk Limited,A017053,13/07/2016,1331230,330.07,Repairs - Parts
North West Leicestershire District Council,31UH,Environmental Health,Environmental Health & Licensing,EEHL,Eville And Jones Limited,A033670,13/07/2016,1331195,415.60,Vet Inspection
North West Leicestershire District Council,31UH,Leisure Centres,Hood Park Leisure Centre,HPLC,T Denman & Sons (Melton Mowbray) Ltd,A030887,13/07/2016,1331255,645.63,Maintenance/Office Expenditure
North West Leicestershire District Council,31UH,Leisure Centres,Hermitage Leisure Centre,HLC,Hamworthy Heating Limited,A013639,13/07/2016,1331264,1993.00,Service Contracts
North West Leicestershire District Council,31UH,Street Management,Environment Parks,ENOP,Beaver Treework,A035021,13/07/2016,1330540,500.00,External Materials
North West Leicestershire District Council,31UH,Street Management,Environment Waste Management,ENOWM,BPI Recycled Products,A017624,13/07/2016,1331220,1306.44,Operational Equipment
North West Leicestershire District Council,31UH,Street Management,Environment Transport,ENOT,Rix Petroleum  (Midlands) Limited,A042624,13/07/2016,1331276,649.35,Fuel
North West Leicestershire District Council,31UH,Street Management,Environment Parks,ENOP,Rigby Taylor Limited,A001392,13/07/2016,1331279,498.00,Operational Equipment
North West Leicestershire District Council,31UH,Planning & Development,Environment Community Planning,ECP,Solon Security,A035272,13/07/2016,1331294,270.00,Security Equipment
North West Leicestershire District Council,31UH,Street Management,Environment - Street Scene,ESS,EPT SERVICES,A039764,13/07/2016,1331397,350.20,Operational Equipment
North West Leicestershire District Council,31UH,Street Management,Environment Parks,ENOP,Plantscape Ltd,A033650,13/07/2016,1330535,640.00,External Materials
North West Leicestershire District Council,31UH,Street Management,Environment Parks,ENOP,Plantscape Ltd,A033650,13/07/2016,1330537,640.00,External Materials
North West Leicestershire District Council,31UH,Property Services,Property Facilities Management,PROPFM,Regarde Security Ltd,A013049,13/07/2016,1331403,480.00,Security Services
North West Leicestershire District Council,31UH,Leisure Centres,Hermitage Bar & Catering,HLBC,Catering Services (Supplies) Ltd,A000310,13/07/2016,1331428,277.12,Catering Provisions
North West Leicestershire District Council,31UH,Street Management,Environment Parks,ENOP,Plantscape Ltd,A033650,13/07/2016,1330536,3412.00,External Materials
North West Leicestershire District Council,31UH,Information Technology,ICT Services,ICT,Freedom Communications (UK) Ltd,A032826,13/07/2016,1329061,1220.00,Administrative Equipment
North West Leicestershire District Council,31UH,Street Management,Environment Transport,ENOT,Spaldings (UK) Limited,A001540,13/07/2016,1330425,860.32,Repairs - Parts
North West Leicestershire District Council,31UH,Street Management,Environment Transport,ENOT,Terberg Matec UK Limited,A001647,13/07/2016,1331361,597.17,Repairs - Parts
North West Leicestershire District Council,31UH,Chief Exec,Chief Executive,CHEX,Leicester City Council ,A034295,13/07/2016,1331430,335.00,Room Hire
North West Leicestershire District Council,31UH,Chief Exec,Chief Executive,CHEX,GL Hearn,A041191,13/07/2016,1331431,22308.80,Consultants Fees
North West Leicestershire District Council,31UH,Information Technology,ICT Services,ICT,Freedom Communications (UK) Ltd,A032826,20/07/2016,1330131,12877.03,Contract Payments (Other) Ext
North West Leicestershire District Council,31UH,Housing,HRA Performance & Business Support,HRAPBS,Michael Page International Recruitment Ltd,A041893,20/07/2016,1330924,6834.00,Agency Staff Costs
North West Leicestershire District Council,31UH,Housing,HRA Performance & Business Support,HRAPBS,Michael Page International Recruitment Ltd,A041893,20/07/2016,1330925,4200.00,Agency Staff Costs
North West Leicestershire District Council,31UH,Leisure & Culture,Cultural Services Arts & Events,CULTEV,Regarde Security Ltd,A013049,20/07/2016,1331224,803.60,Security Services
North West Leicestershire District Council,31UH,Legal & Democratic,Legal Services,LDLS,Venn Group Limited,A028530,20/07/2016,1331493,686.25,Agency Staff Costs
North West Leicestershire District Council,31UH,Legal & Democratic,Legal Services,LDLS,Venn Group Limited,A028530,20/07/2016,1331494,802.39,Agency Staff Costs
North West Leicestershire District Council,31UH,Planning & Development,Environment Community Planning,ECP,Venn Group Limited,A028530,20/07/2016,1331517,972.00,Agency Staff Costs
North West Leicestershire District Council,31UH,Leisure Centres,Hermitage Leisure Centre,HLC,Hugglescote Community Centre,A028420,20/07/2016,1331531,284.00,GP Referral
North West Leicestershire District Council,31UH,Leisure Centres,Hermitage Leisure Centre,HLC,Hugglescote Community Centre,A028420,20/07/2016,1331532,322.00,GP Referral
North West Leicestershire District Council,31UH,Leisure Centres,Hermitage Leisure Centre,HLC,Redacted- Personal data,A042974,20/07/2016,1331534,360.00,Falls Prevention Classes
North West Leicestershire District Council,31UH,Leisure Centres,Hood Park Leisure Centre,HPLC,Physical Company Limited,A007199,20/07/2016,1331575,325.40,Operational Equipment
North West Leicestershire District Council,31UH,Leisure Centres,Hermitage Leisure Centre,HLC,ESPO,A000958,20/07/2016,1329351,698.00,Operational Equipment
North West Leicestershire District Council,31UH,Communications,Corporate - Customer Services,CS,Keltic,A030776,20/07/2016,1330412,598.00,Protective Clothing
North West Leicestershire District Council,31UH,Leisure Centres,Hermitage Leisure Centre,HLC,John Merison BMC Ltd,A001092,20/07/2016,1331272,1596.57,General Repairs
North West Leicestershire District Council,31UH,Information Technology,ICT Services,ICT,Probrand Limited,A025151,20/07/2016,1331459,338.00,Administrative Equipment
North West Leicestershire District Council,31UH,Corporate Director,Human Resources,HR,Premier Employer Solutions Limited,A038606,20/07/2016,1331469,623.85,Child Care Vouchers
North West Leicestershire District Council,31UH,Street Management,Environment Transport,ENOT,Emo Oil Limited,A037391,20/07/2016,1331477,16490.97,Fuel
North West Leicestershire District Council,31UH,Street Management,Environment - Street Scene,ESS,Keltic,A030776,20/07/2016,1331482,705.80,Protective Clothing
North West Leicestershire District Council,31UH,Chief Exec,Chief Executive,CHEX,Sable Leigh Consultancy Ltd T/A SLC Rail,A042727,20/07/2016,1331483,281.02,External Legal Fees & Advice
North West Leicestershire District Council,31UH,Information Technology,ICT Services,ICT,Dell Computer Corporation Ltd,A000470,20/07/2016,1331486,422.92,Operational Equipment
North West Leicestershire District Council,31UH,Information Technology,ICT Services,ICT,Cable & Wireless Worldwide,A038473,20/07/2016,1331491,2603.36,Admin Equipment - Maintenance
North West Leicestershire District Council,31UH,Leisure Centres,Hood Park Leisure Centre,HPLC,John Merison BMC Ltd,A001092,20/07/2016,1331398,350.00,General Repairs
North West Leicestershire District Council,31UH,Street Management,Environment Parks,ENOP,Sherriff Amenity,A034991,20/07/2016,1331476,280.00,External Materials
North West Leicestershire District Council,31UH,Planning & Development,Environment Community Planning,ECP,ESPO,A000958,20/07/2016,1331512,276.00,Partnership Working
North West Leicestershire District Council,31UH,Leisure Centres,Hermitage Bar & Catering,HLBC,LWC - Birmingham,A039915,20/07/2016,1331541,740.71,Bar Provisions
North West Leicestershire District Council,31UH,Leisure Centres,Hermitage Bar & Catering,HLBC,Snackline Direct Ltd,A042489,20/07/2016,1331545,392.79,Catering Provisions
North West Leicestershire District Council,31UH,Leisure Centres,Hermitage Leisure Centre,HLC,Admiral Cleaning Supplies Ltd,A040930,20/07/2016,1331547,309.10,Consumable Cleaning Materials/Hygiene
North West Leicestershire District Council,31UH,Leisure Centres,Hermitage Leisure Centre,HLC,Premier Training International,A035818,20/07/2016,1331548,833.33,GP Referral
North West Leicestershire District Council,31UH,Leisure Centres,Hermitage Bar & Catering,HLBC,LWC - Birmingham,A039915,20/07/2016,1331558,561.97,Bar Provisions
North West Leicestershire District Council,31UH,Leisure Centres,Castle Donington Community College,CDCC,Elliott Group Limited,A005413,20/07/2016,1331561,505.72,Potable Accomodation/Secure Storage
North West Leicestershire District Council,31UH,Leisure Centres,Hermitage Leisure Centre,HLC,Thurston Electrical Supplies,A001667,20/07/2016,1331567,250.00,General Repairs
North West Leicestershire District Council,31UH,Leisure Centres,Hood Park Leisure Centre,HPLC,Thurston Electrical Supplies,A001667,20/07/2016,1331568,250.00,General Repairs
North West Leicestershire District Council,31UH,Leisure Centres,Hermitage Bar & Catering,HLBC,Snackline Direct Ltd,A042489,20/07/2016,1331572,404.46,Catering Provisions
North West Leicestershire District Council,31UH,Leisure Centres,Hood Park Leisure Centre,HPLC,Horton Automatics Limited,A027779,20/07/2016,1331578,276.10,General Repairs
North West Leicestershire District Council,31UH,Leisure Centres,Hood Park Bar and Catering,HPBC,Snackline Direct Ltd,A042489,20/07/2016,1331596,556.00,Catering Provisions
North West Leicestershire District Council,31UH,Leisure Centres,Hermitage Bar & Catering,HLBC,Snackline Direct Ltd,A042489,20/07/2016,1331597,620.12,Catering Provisions
North West Leicestershire District Council,31UH,Street Management,Environment Transport,ENOT,Bandvulc Tyres Ltd,A033268,20/07/2016,1331399,640.00,Transport Costs - Tyres
North West Leicestershire District Council,31UH,Street Management,Environment Transport,ENOT,Sandicliffe Motor Group,A037009,20/07/2016,1331465,400.00,Non Scheduled Maintenance - Parts
North West Leicestershire District Council,31UH,Street Management,Environment - Street Scene,ESS,Electract Limited,A000548,20/07/2016,1331509,250.00,General Repairs
North West Leicestershire District Council,31UH,Leisure & Culture,Cultural Services Arts & Events,CULTEV,Coalville Times Ltd,A000374,20/07/2016,1331600,600.00,Advertising
North West Leicestershire District Council,31UH,Street Management,Environment Transport,ENOT,J F Lloyd & Sons,A000991,20/07/2016,1331603,300.00,Hire Of Operational Equipment
North West Leicestershire District Council,31UH,Street Management,Environment Transport,ENOT,Westbury Industrial Supplies Limited,A009933,20/07/2016,1331624,490.18,Protective Clothing
North West Leicestershire District Council,31UH,Street Management,Environment Transport,ENOT,Dennis Eagle Limited,A000522,20/07/2016,1331460,471.90,Repairs - Parts
North West Leicestershire District Council,31UH,Street Management,Environment Transport,ENOT,Dennis Eagle Limited,A000522,20/07/2016,1331461,263.92,Repairs - Parts
North West Leicestershire District Council,31UH,Street Management,Environment - Street Scene,ESS,Metric Group Ltd (Repairs),A036055,20/07/2016,1331507,505.46,Pay and Display Mahine Repairs
North West Leicestershire District Council,31UH,Planning & Development,Building Control,EBC,Leicestershire County Council,A027423,20/07/2016,1331608,2618.00,Search Fees
North West Leicestershire District Council,31UH,Legal & Democratic,Legal Services,LDLS,Hays Human Resources,A024378,20/07/2016,1331644,984.00,Agency Staff Costs
North West Leicestershire District Council,31UH,Housing,HRA Performance & Business Support,HRAPBS,Agiri Limited,A042661,20/07/2016,1331755,5850.00,Agency Staff Costs
North West Leicestershire District Council,31UH,Property Services,Property Facilities Management,PROPFM,Valuation Office Agency,A034291,20/07/2016,1331756,1300.00,Legal & Professional Services
North West Leicestershire District Council,31UH,Street Management,Environment Waste Management,ENOWM,UK Container Maintenance Ltd,A039044,20/07/2016,1331364,388.00,External Contractor Payments
North West Leicestershire District Council,31UH,Housing,HRA Housing Management,HRAHM,Sturgis Snow & Astill LLP,A032635,20/07/2016,1331720,375.00,Legal & Professional Services
North West Leicestershire District Council,31UH,Street Management,Environment Transport,ENOT,J F Lloyd & Sons,A000991,20/07/2016,1331736,300.00,Hire Of Operational Equipment
North West Leicestershire District Council,31UH,Housing,HRA Performance & Business Support,HRAPBS,Michael Page International Recruitment Ltd,A041893,20/07/2016,1331744,5250.00,Agency Staff Costs
North West Leicestershire District Council,31UH,Street Management,Environment Waste Management,ENOWM,Harborough District Council,A008631,27/07/2016,1331218,481.14,Land Drainage
North West Leicestershire District Council,31UH,Street Management,Environment Waste Management,ENOWM,Westbury Industrial Supplies Limited,A009933,27/07/2016,1331622,1280.29,Protective Clothing
North West Leicestershire District Council,31UH,Property Services,Property Commercial Lettings,PROPCL,Pitney Bowes Finance Plc,A032630,27/07/2016,1331757,342.24,Equipment Operating Leases
North West Leicestershire District Council,31UH,Street Management,Environment Transport,ENOT,Ford & Slater Group Ltd,A000625,27/07/2016,1331758,615.43,Non Scheduled Maintenance - Parts
North West Leicestershire District Council,31UH,Street Management,Environment - Street Scene,ESS,Leicestershire County Council,A000950,27/07/2016,1331772,6915.00,Contributions
North West Leicestershire District Council,31UH,Legal & Democratic,Legal Services,LDLS,Hays Human Resources,A024378,27/07/2016,1331773,1008.00,Agency Staff Costs
North West Leicestershire District Council,31UH,Legal & Democratic,Legal Services,LDLS,Venn Group Limited,A028530,27/07/2016,1331793,348.75,Agency Staff Costs
North West Leicestershire District Council,31UH,Legal & Democratic,Legal Services,LDLS,Venn Group Limited,A028530,27/07/2016,1331794,823.46,Agency Staff Costs
North West Leicestershire District Council,31UH,Planning & Development,Environment Planning Policy,EPP,DTA Ecology Ltd,A042148,27/07/2016,1331795,1500.00,Local Development Framework
North West Leicestershire District Council,31UH,Leisure & Culture,Sport & Physical Activity,SPA,Measham Leisure Centre,A027454,27/07/2016,1331841,347.22,Street Games
North West Leicestershire District Council,31UH,Leisure & Culture,Sport & Physical Activity,SPA,Ashby Hockey Club,A031723,27/07/2016,1331844,250.00,Local Sports Alliance
North West Leicestershire District Council,31UH,Street Management,Environment Transport,ENOT,Bandvulc Tyres Ltd,A033268,27/07/2016,1331967,1440.00,Transport Costs - Tyres
North West Leicestershire District Council,31UH,Property Services,Property Commercial Lettings,PROPCL,Purchase Power,A008204,27/07/2016,1331990,1854.65,Postages
North West Leicestershire District Council,31UH,Planning & Development,Environment Community Planning,ECP,Venn Group Limited,A028530,27/07/2016,1331800,666.09,Agency Staff Costs
North West Leicestershire District Council,31UH,Leisure Centres,Hood Park Leisure Centre,HPLC,J P Lennard Ltd,A000969,27/07/2016,1331818,690.27,Operational Equipment
North West Leicestershire District Council,31UH,Leisure Centres,Hermitage Leisure Centre,HLC,Measham Leisure Centre,A027454,27/07/2016,1331822,3474.86,Measham LC Lifestyle DD
North West Leicestershire District Council,31UH,Leisure Centres,Hermitage Bar & Catering,HLBC,Slush Puppie Ltd,A027751,27/07/2016,1331826,300.51,Catering Provisions
North West Leicestershire District Council,31UH,Street Management,Environment - Street Scene,ESS,Phonographic Performances Ltd,A001300,27/07/2016,1331852,259.98,Public Performance License
North West Leicestershire District Council,31UH,Leisure Centres,Hermitage Bar & Catering,HLBC,Snackline Direct Ltd,A042489,27/07/2016,1331948,429.03,Catering Provisions
North West Leicestershire District Council,31UH,Leisure Centres,Hermitage Bar & Catering,HLBC,Summerfield Butchers,A043212,27/07/2016,1331823,294.00,Catering Provisions
North West Leicestershire District Council,31UH,Information Technology,ICT Services,ICT,Jacarta Ltd,A035637,27/07/2016,1331830,350.00,Admin Equipment - Maintenance
North West Leicestershire District Council,31UH,Property Services,Property Commercial Lettings,PROPCL,Coalville Cleaning Services,A003037,27/07/2016,1331954,531.49,Contract Cleaning
North West Leicestershire District Council,31UH,Property Services,Property Commercial Lettings,PROPCL,Coalville Cleaning Services,A003037,27/07/2016,1331955,276.14,Contract Cleaning
North West Leicestershire District Council,31UH,Street Management,Environment Transport,ENOT,Dennis Eagle Limited,A000522,27/07/2016,1331960,300.04,Repairs - Parts
North West Leicestershire District Council,31UH,Street Management,Environment Transport,ENOT,Taylor Engineering & Fabrications Ltd,A036178,27/07/2016,1331963,279.33,Non Scheduled Maintenance - Parts
North West Leicestershire District Council,31UH,Street Management,Environment Transport,ENOT,Taylor Engineering & Fabrications Ltd,A036178,27/07/2016,1331965,347.77,Non Scheduled Maintenance - Parts
North West Leicestershire District Council,31UH,Street Management,Environment Transport,ENOT,Bandvulc Tyres Ltd,A033268,27/07/2016,1331987,1120.00,Transport Costs - Tyres
